[Event "Bremer Silvester Open 2018"]
[Site "Bremen"]
[Date "2018.12.27"]
[Round "1"]
[White "Grigorian, Spartak"]
[Black "Goetz, Claus"]
[Result "1-0"]
[ECO "A56"]
[WhiteElo "2346"]
[BlackElo "1927"]
[Annotator "NA"]
[PlyCount "79"]
[EventDate "2018.12.27"]
[EventType "swiss"]
[EventCountry "GER"]
[SourceTitle "playchess.com"]
[Source "ChessBase"]
[SourceQuality "1"]
[TimeControl "40/5400+30:1800+30"]

1. d4 {[%emt 0:00:00]} Nf6 {[%emt 0:00:00]} 2. Nf3 {[%emt 0:00:00]} c5 {[%emt 0:00:00]} 3. d5 {[%emt 0:01:04]} d6 {[%emt 0:00:11]} 4. c4 {[%emt 0:02:15]} e5 {[%emt 0:00:46]} 5. Nc3 {[%emt 0:01:19]} Nbd7 {[%emt 0:01:01]} 6. e4 {[%emt 0:00:14]} Be7 {[%emt 0:00:45]} 7. Bd3 {[%emt 0:00:52]} O-O {[%emt 0:01:03]} 8. a3 {[%emt 0:02:07] A56: Czech Benoni} Ne8 {[%emt 0:02:02]} 9. h3 {[%emt 0:13:00]} g6 {[%emt 0:02:55]} 10. Bh6 {[%emt 0:01:52]} Ng7 {[%emt 0:00:09]} 11. g4 {[%emt 0:00:11]} Nf6 {[%emt 0:02:33]} (11... Kh8 12. Qd2 Nf6 13. O-O-O Ng8 14. Kb1 Nxh6 15. Qxh6 Rg8 {1-0 (43) Wang,H (2737)-Aronian,L (2815) Beijing 2012}) 12. Qc2 $146 {[%emt 0:31:02]} ({Predecessor:} 12. Ne2 Bd7 13. b4 b6 14. Ng3 Kh8 15. Be3 Qc7 16. Rb1 Rab8 {½-½ (66) Batchuluun,T (2499)-Rozum,I (2581) Vladivostok 2016}) 12... Kh8 {[%emt 0:04:04]} 13. Rg1 {[%emt 0:02:04]} Ng8 {[%emt 0:01:28]} 14. Bd2 {[%emt 0:00:03]} Bd7 {[%emt 0:02:13]} 15. h4 {[%emt 0:06:04]} Nf6 {[%emt 0:11:55]} 16. Nh2 {[%emt 0:01:45]} Qc8 {[%emt 0:03:05]} 17. f3 {[%emt 0:03:47]} a6 {[%emt 0:06:26]} 18. Ne2 {[%emt 0:07:46]} b5 {[%emt 0:02:15]} 19. Ng3 {[%emt 0:01:01]} bxc4 {[%emt 0:05:30]} 20. Bxc4 {[%emt 0:00:00]} Rb8 {[%emt 0:06:30]} 21. Nhf1 {[%emt 0:02:26]} Nxg4 {[%emt 0:04:58]} (21... h5 $11 {keeps the balance.}) 22. fxg4 {[%emt 0:00:14]} Bxg4 {[%emt 0:00:34]} 23. Bg5 {[%emt 0:01:54]} f6 {[%emt 0:01:48]} 24. Bh6 {[%emt 0:00:33]} f5 $16 {[%emt 0:00:54]} 25. Bxg7+ {[%emt 0:03:39]} Kxg7 {[%emt 0:00:10]} 26. exf5 {[%emt 0:00:15]} Bxh4 {[%emt 0:01:09]} 27. Ne3 {[%emt 0:01:14]} Bxf5 {[%emt 0:03:20]} 28. Qh2 {[%emt 0:01:39]} Bxg3+ {[%emt 0:01:57]} 29. Rxg3 {[%emt 0:00:02]} a5 {[%emt 0:01:39]} 30. O-O-O {[%emt 0:00:14]} Be4 {[%emt 0:04:06]} 31. Rh3 {[%emt 0:03:33]} h5 {[%emt 0:01:05]} 32. Rg1 {[%emt 0:00:20]} Rf2 {[%emt 0:01:00]} 33. Qxf2 {[%emt 0:01:56]} Qxh3 {[%emt 0:00:10]} 34. Bf1 {[%emt 0:02:25]} Qd7 {[%emt 0:01:01]} 35. Qh4 {[%emt 0:00:33]} Bf3 {[%emt 0:01:59]} 36. Qg5 {[%emt 0:04:57]} Be4 {[%emt 0:03:12]} 37. Qh4 {[%emt 0:00:06]} Bf5 {[%emt 0:00:53]} 38. Qxh5 {[%emt 0:00:26]} Be4 {[%emt 0:01:05]} 39. Qh4 {[%emt 0:00:38]} Qa4 {[%emt 0:01:44]} 40. Nf5+ {[%emt 0:00:51]} 1-0

[Event "Bremer Silvester Open 2018"]
[Site "Bremen"]
[Date "2018.12.27"]
[Round "1"]
[White "Polster, Christian"]
[Black "Zotin, Vladimir"]
[Result "1-0"]
[ECO "C53"]
[WhiteElo "2306"]
[BlackElo "1869"]
[Annotator "NA RC"]
[PlyCount "29"]
[EventDate "2018.12.27"]
[EventType "swiss"]
[EventCountry "GER"]
[SourceTitle "playchess.com"]
[Source "ChessBase"]
[SourceQuality "1"]
[TimeControl "40/5400+30:1800+30"]

1. e4 {[%emt 0:00:00]} e5 {[%emt 0:00:00]} 2. Nf3 {[%emt 0:00:00]} Nc6 {[%emt 0:00:11]} 3. Bc4 {[%emt 0:00:00]} Bc5 {[%emt 0:00:19]} 4. c3 {[%emt 0:00:05]} a6 {[%emt 0:00:08]} 5. d4 {[%emt 0:00:33]} exd4 {[%emt 0:00:43]} 6. cxd4 {[%emt 0:00:15]} Bb4+ {[%emt 0:00:54]} 7. Nc3 {[%emt 0:01:21]} Nf6 {[%emt 0:01:18]} 8. O-O {[%emt 0:06:18]} Bxc3 {[%emt 0:02:10]} 9. bxc3 {[%emt 0:01:21]} Nxe4 {[%emt 0:00:15]} 10. d5 {[%emt 0:00:29]} Ne7 {[%emt 0:01:44]} 11. Qd4 {[%emt 0:05:26]} Nd6 {[%emt 0:00:49]} 12. Qxg7 {[%emt 0:02:25]} Rg8 {[%emt 0:00:03]} 13. Qxh7 {[%emt 0:01:39]} Nxc4 {[%emt 0:00:18]} 14. Re1 {[%emt 0:00:33]} d6 {[%emt 0:04:20]} 15. Qxg8+ {[%emt 0:00:17]} 1-0

[Event "Bremer Silvester Open 2018"]
[Site "Bremen"]
[Date "2018.12.27"]
[Round "1"]
[White "Hoeffer, David"]
[Black "Hattenhauer, Klaus"]
[Result "1-0"]
[ECO "E11"]
[WhiteElo "2259"]
[BlackElo "1836"]
[Annotator "NA"]
[PlyCount "83"]
[EventDate "2018.12.27"]
[EventType "swiss"]
[EventCountry "GER"]
[SourceTitle "playchess.com"]
[Source "ChessBase"]
[SourceQuality "1"]
[TimeControl "40/5400+30:1800+30"]

1. d4 {[%emt 0:00:00]} d5 {[%emt 0:00:00]} 2. c4 {[%emt 0:00:00]} e6 {[%emt 0:00:00]} 3. Nf3 {[%emt 0:00:00]} Nf6 {[%emt 0:00:05]} 4. g3 {[%emt 0:00:08]} Bb4+ {[%emt 0:02:08]} 5. Bd2 {[%emt 0:00:18]} Bxd2+ {[%emt 0:00:42]} 6. Nbxd2 {[%emt 0:00:34]} Nc6 {[%emt 0:01:51]} 7. Bg2 {[%emt 0:01:11]} O-O {[%emt 0:01:44]} 8. O-O {[%emt 0:00:05]} Re8 {[%emt 0:04:34] E11: Bogo-Indian} (8... Qe7 9. Qc2 Rd8 10. Rfd1 Bd7 11. Rac1 Rac8 12. b3 Be8 13. Qb2 h6 14. a3 a5 15. e3 Ne4 16. cxd5 exd5 {0-1 (46) Matjushin,G (2500)-Iakymov,V (2453) Alushta 2009}) 9. Rc1 {[%emt 0:08:04]} Ne7 {[%emt 0:05:10]} 10. Qc2 {[%emt 0:02:03]} c6 {[%emt 0:00:37]} 11. Rfd1 {[%emt 0:03:44]} Bd7 $146 {[%emt 0:04:45]} ({Predecessor:} 11... Ng6 12. e4 dxe4 13. Nxe4 Nxe4 14. Qxe4 Qa5 15. a3 Bd7 16. Ne5 {½-½ (30) Kwossek,G (1947)-Rauch,A (1913) Wuerzburg 2007}) 12. e4 {[%emt 0:03:50]} Nxe4 {[%emt 0:02:41]} 13. Nxe4 {[%emt 0:00:05]} dxe4 {[%emt 0:00:16]} 14. Qxe4 {[%emt 0:00:05]} Ng6 {[%emt 0:01:49]} 15. h4 {[%emt 0:01:02]} h6 {[%emt 0:06:26]} 16. h5 {[%emt 0:03:29]} Nf8 {[%emt 0:00:31]} 17. Ne5 {[%emt 0:02:24]} Qg5 {[%emt 0:03:44]} 18. Qe2 {[%emt 0:03:44]} Rad8 {[%emt 0:00:52]} 19. Rc3 {[%emt 0:05:29]} Qe7 {[%emt 0:03:54]} 20. c5 {[%emt 0:04:05]} Rb8 {[%emt 0:11:36]} 21. Nc4 {[%emt 0:02:46]} Red8 {[%emt 0:00:15]} 22. Nd6 {[%emt 0:07:38]} Nh7 {[%emt 0:03:09]} 23. Qe5 {[%emt 0:08:18]} Qg5 {[%emt 0:05:02]} 24. f4 {[%emt 0:06:25]} Qxe5 {[%emt 0:05:27]} 25. dxe5 {[%emt 0:00:09]} Be8 {[%emt 0:04:58]} 26. Ra3 {[%emt 0:01:59]} a6 {[%emt 0:00:45]} 27. Rad3 {[%emt 0:00:20]} Rd7 {[%emt 0:00:33]} 28. Be4 {[%emt 0:02:37]} Nf8 $18 {[%emt 0:02:33]} 29. Kf2 {[%emt 0:04:22]} Re7 {[%emt 0:06:49]} 30. Ke3 {[%emt 0:01:07]} Nh7 {[%emt 0:03:55]} 31. Rb3 {[%emt 0:01:33]} f5 {[%emt 0:02:00]} 32. Bf3 {[%emt 0:00:13]} Nf8 {[%emt 0:04:39]} 33. Rd4 {[%emt 0:00:46]} Nd7 {[%emt 0:00:43]} 34. Rc4 {[%emt 0:03:04]} Nf8 {[%emt 0:01:59]} 35. Rcb4 {[%emt 0:00:49]} g5 {[%emt 0:01:26]} 36. Rxb7 {[%emt 0:01:10]} Rexb7 {[%emt 0:01:33]} 37. Rxb7 {[%emt 0:00:07]} Rxb7 {[%emt 0:00:31]} 38. Nxb7 {[%emt 0:00:05]} g4 {[%emt 0:01:34]} 39. Be2 {[%emt 0:00:10]} Bd7 {[%emt 0:01:23]} 40. Nd6 {[%emt 0:00:12]} a5 {[%emt 0:00:58]} 41. a4 {[%emt 0:30:05]} Nh7 {[%emt 0:30:31]} 42. b4 {[%emt 0:00:09]} 1-0

[Event "Bremer Silvester Open 2018"]
[Site "Bremen"]
[Date "2018.12.27"]
[Round "1"]
[White "Hochhuth, Arnd"]
[Black "Pfreundt, Jakob"]
[Result "0-1"]
[ECO "C65"]
[WhiteElo "1943"]
[BlackElo "2373"]
[Annotator "NA"]
[PlyCount "44"]
[EventDate "2018.12.27"]
[EventType "swiss"]
[EventCountry "GER"]
[SourceTitle "playchess.com"]
[Source "ChessBase"]
[SourceQuality "1"]
[TimeControl "40/5400+30:1800+30"]

1. e4 {[%emt 0:00:00]} e5 {[%emt 0:01:14]} 2. Nf3 {[%emt 0:01:09]} Nc6 {[%emt 0:00:09]} 3. Bb5 {[%emt 0:00:22]} Nf6 {[%emt 0:01:36]} 4. d3 {[%emt 0:00:42]} Bc5 {[%emt 0:00:11]} 5. c3 {[%emt 0:00:58]} d5 {[%emt 0:02:08]} 6. exd5 {[%emt 0:07:46]} Qxd5 {[%emt 0:00:12]} 7. Bc4 {[%emt 0:01:48]} Qd6 {[%emt 0:00:21]} 8. O-O {[%emt 0:03:09]} e4 {[%emt 0:07:31]} 9. Ng5 {[%emt 0:05:04]} O-O {[%emt 0:11:18]} 10. d4 {[%emt 0:13:33]} Bb6 {[%emt 0:00:54]} 11. Re1 {[%emt 0:06:27]} Bf5 {[%emt 0:04:09]} 12. f3 {[%emt 0:05:13]} Rae8 {[%emt 0:08:13]} 13. Nxe4 {[%emt 0:05:48]} Nxe4 {[%emt 0:17:43]} 14. fxe4 {[%emt 0:00:10]} Bxe4 {[%emt 0:00:42]} 15. Be3 {[%emt 0:05:57]} Qg6 {[%emt 0:04:27]} 16. Bf1 {[%emt 0:02:33]} f5 {[%emt 0:14:44]} 17. Qd2 {[%emt 0:14:06]} f4 {[%emt 0:05:52]} 18. Bxf4 {[%emt 0:04:33]} Nxd4 {[%emt 0:05:15]} 19. cxd4 {[%emt 0:00:54]} Rxf4 {[%emt 0:01:01]} 20. Nc3 {[%emt 0:01:20]} Bxd4+ {[%emt 0:00:45]} 21. Kh1 {[%emt 0:01:19]} Rf2 {[%emt 0:04:31]} 22. Re2 {[%emt 0:09:18]} Bxg2+ {[%emt 0:00:39]} 0-1

[Event "Bremer Silvester Open 2018"]
[Site "Bremen"]
[Date "2018.12.27"]
[Round "1"]
[White "Jung, Gerald"]
[Black "Lammers, Markus"]
[Result "0-1"]
[ECO "A00"]
[WhiteElo "1892"]
[BlackElo "2312"]
[Annotator "NA RC"]
[PlyCount "40"]
[EventDate "2018.12.27"]
[EventType "swiss"]
[EventCountry "GER"]
[SourceTitle "playchess.com"]
[Source "ChessBase"]
[SourceQuality "1"]
[TimeControl "40/5400+30:1800+30"]

1. Nc3 {[%emt 0:00:00]} d5 {[%emt 0:00:00]} 2. e4 {[%emt 0:00:00]} dxe4 {[%emt 0:02:25]} 3. Bc4 {[%emt 0:00:00]} Nf6 {[%emt 0:00:52]} 4. f3 {[%emt 0:00:26]} Bf5 {[%emt 0:10:12]} 5. Qe2 {[%emt 0:01:31]} exf3 {[%emt 0:08:08]} 6. Nxf3 {[%emt 0:00:04]} Nc6 {[%emt 0:01:10]} 7. d4 {[%emt 0:12:21]} Nxd4 {[%emt 0:02:31]} 8. Nxd4 {[%emt 0:00:29]} Qxd4 {[%emt 0:00:07]} 9. Nb5 {[%emt 0:00:41]} Qc5 {[%emt 0:19:18]} 10. Bf4 {[%emt 0:01:24]} O-O-O {[%emt 0:03:11]} 11. b4 {[%emt 0:13:48]} Qxb4+ {[%emt 0:02:54]} 12. c3 {[%emt 0:02:56]} Qa4 {[%emt 0:13:41]} 13. Bxf7 {[%emt 0:13:08]} Qxf4 {[%emt 0:03:30]} 14. Nxa7+ {[%emt 0:00:10]} Kb8 {[%emt 0:00:48]} 15. Nc6+ {[%emt 0:01:06]} bxc6 {[%emt 0:00:26]} 16. Rf1 {[%emt 0:00:43]} Qe4 {[%emt 0:03:25]} 17. Rxf5 {[%emt 0:00:15]} Qxf5 {[%emt 0:01:54]} 18. Qb2+ {[%emt 0:00:08]} Qb5 {[%emt 0:00:36]} 19. Qc2 {[%emt 0:00:18]} Qe5+ {[%emt 0:00:22]} 20. Kf1 {[%emt 0:00:27]} Nd7 {[%emt 0:00:23]} 0-1

[Event "Bremer Silvester Open 2018"]
[Site "Bremen"]
[Date "2018.12.27"]
[Round "1"]
[White "Schwenteck, Peter"]
[Black "Wachinger, Nikolas"]
[Result "0-1"]
[ECO "D02"]
[WhiteElo "1852"]
[BlackElo "2306"]
[Annotator "NA"]
[PlyCount "34"]
[EventDate "2018.12.27"]
[EventType "swiss"]
[EventCountry "GER"]
[SourceTitle "playchess.com"]
[Source "ChessBase"]
[SourceQuality "1"]
[TimeControl "40/5400+30:1800+30"]

1. d4 {[%emt 0:00:00]} Nf6 {[%emt 0:00:00]} 2. g3 {[%emt 0:00:00]} d5 {[%emt 0:00:08]} 3. Nf3 {[%emt 0:00:17]} c5 {[%emt 0:00:15]} 4. dxc5 {[%emt 0:04:50]} Nc6 {[%emt 0:03:59]} 5. Bg2 {[%emt 0:04:51]} e5 {[%emt 0:02:34]} 6. c3 {[%emt 0:02:24]} Bxc5 {[%emt 0:06:19]} 7. O-O {[%emt 0:06:49]} h6 {[%emt 0:02:59]} 8. b4 {[%emt 0:06:25]} Bd6 {[%emt 0:00:42]} 9. Bb2 {[%emt 0:03:12]} a6 {[%emt 0:05:56]} 10. Nbd2 {[%emt 0:06:47]} Be6 {[%emt 0:12:40]} 11. a3 {[%emt 0:04:05]} O-O {[%emt 0:01:59]} 12. Qc2 {[%emt 0:04:13]} Rc8 {[%emt 0:01:55]} 13. Rac1 {[%emt 0:04:00]} e4 {[%emt 0:09:32]} 14. Ne1 {[%emt 0:01:39]} e3 {[%emt 0:00:26]} 15. fxe3 $17 {[%emt 0:01:15]} Ng4 {[%emt 0:00:07]} 16. Qd3 {[%emt 0:04:36]} Qg5 {[%emt 0:22:01]} 17. Nc2 {[%emt 0:05:40]} Nxh2 {[%emt 0:00:50]} 0-1

[Event "Bremer Silvester Open 2018"]
[Site "Bremen"]
[Date "2018.12.28"]
[Round "2"]
[White "Pfreundt, Jakob"]
[Black "Schulz, Daniel"]
[Result "1-0"]
[ECO "C01"]
[WhiteElo "2373"]
[BlackElo "2069"]
[Annotator "RC"]
[PlyCount "54"]
[EventDate "2018.12.27"]
[EventType "swiss"]
[EventCountry "GER"]
[SourceTitle "playchess.com"]
[Source "ChessBase"]
[SourceQuality "1"]
[TimeControl "40/5400+30:1800+30"]

1. e4 {[%emt 0:00:49]} e6 {[%emt 0:00:00]} 2. d4 {[%emt 0:01:36]} d5 {[%emt 0:00:00]} 3. exd5 {[%emt 0:01:20]} exd5 {[%emt 0:00:11]} 4. Nf3 {[%emt 0:00:09]} Bg4 {[%emt 0:01:46]} 5. h3 {[%emt 0:00:53]} Bh5 {[%emt 0:01:28]} 6. Qe2+ {[%emt 0:00:16]} Qe7 {[%emt 0:03:16]} 7. Be3 {[%emt 0:00:13]} Nc6 {[%emt 0:04:11]} 8. g4 {[%emt 0:01:14]} Bg6 {[%emt 0:00:29]} 9. Nc3 {[%emt 0:00:09]} O-O-O {[%emt 0:04:17]} 10. O-O-O {[%emt 0:00:17]} f6 {[%emt 0:06:31]} 11. Nh4 {[%emt 0:08:26]} Bf7 {[%emt 0:09:43]} 12. a3 {[%emt 0:26:22]} a6 {[%emt 0:06:43]} 13. Na4 {[%emt 0:05:53]} Qd7 {[%emt 0:04:24]} 14. Qd2 {[%emt 0:05:41]} Kb8 {[%emt 0:05:18]} 15. Qc3 {[%emt 0:12:48]} Nge7 {[%emt 0:18:42]} 16. Nc5 {[%emt 0:01:52]} Qc8 {[%emt 0:00:46]} 17. Bd3 {[%emt 0:02:24]} g5 {[%emt 0:04:37]} 18. Nf5 {[%emt 0:06:11]} Bg6 {[%emt 0:03:15]} 19. Nxe7 {[%emt 0:07:34]} Nxe7 {[%emt 0:00:39]} 20. Be2 {[%emt 0:00:57]} h5 {[%emt 0:04:58]} 21. h4 {[%emt 0:05:48]} hxg4 {[%emt 0:03:13]} 22. hxg5 {[%emt 0:00:14]} Bg7 {[%emt 0:07:30]} 23. Nxa6+ {[%emt 0:02:59]} bxa6 {[%emt 0:04:26]} 24. Qb4+ {[%emt 0:00:06]} Ka8 {[%emt 0:01:47]} 25. Qxe7 {[%emt 0:02:37]} Rxh1 {[%emt 0:02:04]} 26. Rxh1 {[%emt 0:00:05]} Be4 {[%emt 0:01:32]} 27. Bxg4 {[%emt 0:05:47]} f5 {[%emt 0:00:00]} 1-0

[Event "Bremer Silvester Open 2018"]
[Site "Bremen"]
[Date "2018.12.28"]
[Round "2"]
[White "Lammers, Markus"]
[Black "Reuker, Matthias"]
[Result "1/2-1/2"]
[ECO "A87"]
[WhiteElo "2312"]
[BlackElo "2036"]
[Annotator "RC"]
[PlyCount "80"]
[EventDate "2018.12.27"]
[EventType "swiss"]
[EventCountry "GER"]
[SourceTitle "playchess.com"]
[Source "ChessBase"]
[SourceQuality "1"]
[TimeControl "40/5400+30:1800+30"]

1. Nf3 {[%emt 0:00:00]} f5 {[%emt 0:00:00]} 2. d4 {[%emt 0:00:00]} Nf6 {[%emt 0:00:00]} 3. c4 {[%emt 0:00:23]} g6 {[%emt 0:00:00]} 4. g3 {[%emt 0:00:39]} Bg7 {[%emt 0:00:07]} 5. Bg2 {[%emt 0:00:05]} d6 {[%emt 0:00:17]} 6. O-O {[%emt 0:00:09]} O-O {[%emt 0:00:09]} 7. Nc3 {[%emt 0:00:10]} Qe8 {[%emt 0:00:19]} 8. d5 {[%emt 0:00:11]} Na6 {[%emt 0:00:12]} 9. Be3 {[%emt 0:01:36]} e5 {[%emt 0:02:39]} 10. dxe6 {[%emt 0:00:32]} Qxe6 {[%emt 0:12:59]} 11. Rc1 {[%emt 0:12:34]} h6 {[%emt 0:03:46]} 12. Nb5 {[%emt 0:13:09]} c6 {[%emt 0:15:30]} 13. Nxd6 {[%emt 0:11:18]} Rd8 {[%emt 0:00:21]} 14. c5 {[%emt 0:01:00]} Ne4 {[%emt 0:01:59]} 15. Nd4 {[%emt 0:12:59]} Qxa2 {[%emt 0:20:23]} 16. Bxe4 {[%emt 0:00:34]} fxe4 {[%emt 0:00:11]} 17. Qc2 {[%emt 0:00:43]} Qd5 {[%emt 0:25:28]} 18. Rfd1 {[%emt 0:00:42]} Qxc5 {[%emt 0:01:46]} 19. Nxc6 {[%emt 0:12:43]} Qxc2 {[%emt 0:00:42]} 20. Ne7+ {[%emt 0:00:06]} Kh7 {[%emt 0:00:42]} 21. Rxc2 {[%emt 0:00:03]} Be6 {[%emt 0:02:14]} 22. Rdd2 {[%emt 0:02:01]} Bf8 {[%emt 0:02:05]} 23. Nxb7 {[%emt 0:00:32]} Rxd2 {[%emt 0:00:17]} 24. Rxd2 {[%emt 0:02:49]} Bxe7 {[%emt 0:00:11]} 25. Rd4 {[%emt 0:00:37]} Bh3 {[%emt 0:04:36]} 26. Rxe4 {[%emt 0:00:44]} Bf6 {[%emt 0:00:36]} 27. Ra4 {[%emt 0:02:29]} Nc7 {[%emt 0:02:06]} 28. Rxa7 {[%emt 0:04:00]} Rxa7 {[%emt 0:01:33]} 29. Bxa7 {[%emt 0:00:03]} Bxb2 {[%emt 0:00:05]} 30. Nd6 {[%emt 0:00:42]} Be6 {[%emt 0:00:46]} 31. Bc5 {[%emt 0:15:22]} Na6 {[%emt 0:01:11]} 32. Bb6 {[%emt 0:00:26]} Be5 {[%emt 0:00:31]} 33. Nb5 {[%emt 0:02:12]} Bc4 {[%emt 0:00:35]} 34. Nd4 {[%emt 0:00:02]} Bxd4 {[%emt 0:00:43]} 35. Bxd4 {[%emt 0:00:03]} Bxe2 {[%emt 0:00:08]} 36. h3 {[%emt 0:02:00]} Bf3 {[%emt 0:00:51]} 37. g4 {[%emt 0:01:57]} Nc7 {[%emt 0:00:40]} 38. Kh2 {[%emt 0:00:10]} Ne6 {[%emt 0:00:14]} 39. Be3 {[%emt 0:00:17]} Bd5 {[%emt 0:02:06]} 40. Kg3 {[%emt 0:00:16]} Ng7 {[%emt 0:00:15]} 1/2-1/2

[Event "Bremer Silvester Open 2018"]
[Site "Bremen"]
[Date "2018.12.28"]
[Round "2"]
[White "Wachinger, Nikolas"]
[Black "Pahl, Theis"]
[Result "1/2-1/2"]
[ECO "B29"]
[WhiteElo "2306"]
[BlackElo "2021"]
[Annotator "RC"]
[PlyCount "53"]
[EventDate "2018.12.27"]
[EventType "swiss"]
[EventCountry "GER"]
[SourceTitle "playchess.com"]
[Source "ChessBase"]
[SourceQuality "1"]
[TimeControl "40/5400+30:1800+30"]

1. e4 {[%emt 0:00:00]} c5 {[%emt 0:00:00]} 2. Nf3 {[%emt 0:00:00]} Nf6 {[%emt 0:00:00]} 3. e5 {[%emt 0:00:37]} Nd5 {[%emt 0:00:00]} 4. Nc3 {[%emt 0:00:04]} e6 {[%emt 0:00:00]} 5. Ne4 {[%emt 0:00:06]} f5 {[%emt 0:00:26]} 6. Nc3 {[%emt 0:01:29]} Nxc3 {[%emt 0:01:30]} 7. dxc3 {[%emt 0:00:12]} Be7 {[%emt 0:00:59]} 8. Bf4 {[%emt 0:03:28]} Nc6 {[%emt 0:00:42]} 9. Qd2 {[%emt 0:01:34]} b6 {[%emt 0:00:59]} 10. O-O-O {[%emt 0:05:46]} Bb7 {[%emt 0:01:48]} 11. Qe3 {[%emt 0:03:20]} Qc7 {[%emt 0:03:33]} 12. h4 {[%emt 0:06:13]} O-O-O {[%emt 0:07:23]} 13. Nd2 {[%emt 0:03:51]} Na5 {[%emt 0:02:03]} 14. Bg5 {[%emt 0:02:47]} Bxg5 {[%emt 0:00:51]} 15. hxg5 {[%emt 0:00:17]} Kb8 {[%emt 0:03:15]} 16. Rh4 {[%emt 0:03:35]} d5 {[%emt 0:10:34]} 17. exd6 {[%emt 0:00:53]} Rxd6 {[%emt 0:00:21]} 18. f4 {[%emt 0:03:52]} g6 {[%emt 0:03:26]} 19. c4 {[%emt 0:09:24]} Rhd8 {[%emt 0:06:35]} 20. g3 {[%emt 0:08:36]} Nc6 {[%emt 0:02:52]} 21. a3 {[%emt 0:04:12]} e5 {[%emt 0:03:05]} 22. fxe5 {[%emt 0:01:04]} Re6 {[%emt 0:00:17]} 23. Nf3 {[%emt 0:01:12]} Rxd1+ {[%emt 0:01:10]} 24. Kxd1 {[%emt 0:00:13]} Nxe5 {[%emt 0:00:59]} 25. Nxe5 {[%emt 0:00:35]} Rxe5 {[%emt 0:00:19]} 26. Qf4 {[%emt 0:00:37]} Re7 {[%emt 0:01:37]} 27. Bd3 {[%emt 0:04:15]} 1/2-1/2

[Event "Bremer Silvester Open 2018"]
[Site "Bremen"]
[Date "2018.12.28"]
[Round "2"]
[White "Zahn, Richard"]
[Black "Grigorian, Spartak"]
[Result "0-1"]
[ECO "A45"]
[WhiteElo "2067"]
[BlackElo "2346"]
[Annotator "RC"]
[PlyCount "58"]
[EventDate "2018.12.27"]
[EventType "swiss"]
[EventCountry "GER"]
[SourceTitle "playchess.com"]
[Source "ChessBase"]
[SourceQuality "1"]
[TimeControl "40/5400+30:1800+30"]

1. d4 {[%emt 0:00:00]} Nf6 {[%emt 0:00:00]} 2. e3 {[%emt 0:00:00]} g6 {[%emt 0:00:00]} 3. f4 {[%emt 0:00:00]} Bg7 {[%emt 0:00:00]} 4. Nf3 {[%emt 0:00:00]} O-O {[%emt 0:00:00]} 5. c3 {[%emt 0:01:00]} d6 {[%emt 0:00:11]} 6. Bc4 {[%emt 0:00:20]} Bf5 {[%emt 0:02:15]} 7. O-O {[%emt 0:00:30]} c5 {[%emt 0:01:48]} 8. Qe2 {[%emt 0:11:40]} d5 {[%emt 0:15:05]} 9. Bd3 {[%emt 0:06:50]} e6 {[%emt 0:03:17]} 10. Nbd2 {[%emt 0:00:27]} Qc7 {[%emt 0:01:30]} 11. Ne5 {[%emt 0:00:51]} c4 {[%emt 0:04:16]} 12. Bb1 {[%emt 0:03:33]} b5 {[%emt 0:01:21]} 13. e4 {[%emt 0:00:47]} dxe4 {[%emt 0:02:41]} 14. g4 {[%emt 0:20:35]} e3 {[%emt 0:00:07]} 15. gxf5 {[%emt 0:00:05]} exd2 {[%emt 0:00:08]} 16. fxg6 {[%emt 0:00:07]} dxc1=N {[%emt 0:06:00]} 17. gxh7+ {[%emt 0:02:17]} Kh8 {[%emt 0:01:35]} 18. Rxc1 {[%emt 0:00:12]} Nbd7 {[%emt 0:04:42]} 19. Rf1 {[%emt 0:03:47]} Rae8 {[%emt 0:03:50]} 20. Rf3 {[%emt 0:07:43]} Nd5 {[%emt 0:01:45]} 21. Bc2 {[%emt 0:03:31]} Nxe5 {[%emt 0:13:26]} 22. fxe5 {[%emt 0:00:59]} f5 {[%emt 0:00:11]} 23. exf6 {[%emt 0:03:32]} Rxf6 {[%emt 0:02:40]} 24. Raf1 {[%emt 0:03:28]} e5 {[%emt 0:10:28]} 25. Qe4 {[%emt 0:04:07]} Rxf3 {[%emt 0:02:54]} 26. Rxf3 {[%emt 0:00:48]} Qd8 {[%emt 0:12:58]} 27. Qg6 {[%emt 0:07:51]} Rf8 {[%emt 0:03:44]} 28. Rg3 {[%emt 0:03:22]} Qe7 {[%emt 0:00:45]} 29. Qe4 {[%emt 0:03:26]} exd4 {[%emt 0:00:37]} 0-1

[Event "Bremer Silvester Open 2018"]
[Site "Bremen"]
[Date "2018.12.28"]
[Round "2"]
[White "Schroeter, Baldur"]
[Black "Polster, Christian"]
[Result "0-1"]
[ECO "B22"]
[WhiteElo "2032"]
[BlackElo "2306"]
[Annotator "RC"]
[PlyCount "66"]
[EventDate "2018.12.27"]
[EventType "swiss"]
[EventCountry "GER"]
[SourceTitle "playchess.com"]
[Source "ChessBase"]
[SourceQuality "1"]
[TimeControl "40/5400+30:1800+30"]

1. e4 {[%emt 0:00:00]} c5 {[%emt 0:00:00]} 2. c3 {[%emt 0:00:00]} Nf6 {[%emt 0:00:00]} 3. e5 {[%emt 0:00:00]} Nd5 {[%emt 0:00:00]} 4. d4 {[%emt 0:00:00]} cxd4 {[%emt 0:00:00]} 5. cxd4 {[%emt 0:00:06]} d6 {[%emt 0:00:10]} 6. Nf3 {[%emt 0:00:06]} Nc6 {[%emt 0:00:08]} 7. Bc4 {[%emt 0:00:05]} Nb6 {[%emt 0:01:25]} 8. Bb3 {[%emt 0:00:07]} dxe5 {[%emt 0:07:33]} 9. d5 {[%emt 0:00:11]} Na5 {[%emt 0:01:44]} 10. Nc3 {[%emt 0:00:08]} Nxb3 {[%emt 0:15:47]} 11. Qxb3 {[%emt 0:00:45]} e6 {[%emt 0:07:09]} 12. Nxe5 {[%emt 0:00:23]} exd5 {[%emt 0:05:40]} 13. Be3 {[%emt 0:00:31]} Bd6 {[%emt 0:03:41]} 14. Qb5+ {[%emt 0:00:12]} Kf8 {[%emt 0:03:19]} 15. Nf3 {[%emt 0:04:32]} Be6 {[%emt 0:12:28]} 16. O-O {[%emt 0:05:53]} Qe8 {[%emt 0:24:10]} 17. Bxb6 {[%emt 0:09:24]} axb6 {[%emt 0:00:10]} 18. Qxb6 {[%emt 0:01:16]} Qc6 {[%emt 0:01:18]} 19. Qb5 {[%emt 0:06:10]} Qxb5 {[%emt 0:04:49]} 20. Nxb5 {[%emt 0:00:06]} Bb8 {[%emt 0:00:32]} 21. Nfd4 {[%emt 0:10:27]} Ke7 {[%emt 0:01:16]} 22. a3 {[%emt 0:02:27]} Rc8 {[%emt 0:01:11]} 23. Rac1 {[%emt 0:00:34]} Be5 {[%emt 0:01:12]} 24. f4 {[%emt 0:08:52]} Rxc1 {[%emt 0:00:55]} 25. Rxc1 {[%emt 0:00:03]} Bxf4 {[%emt 0:00:10]} 26. Rc2 {[%emt 0:02:10]} Ra4 {[%emt 0:01:39]} 27. Kf2 {[%emt 0:01:07]} Be5 {[%emt 0:01:20]} 28. Rd2 {[%emt 0:00:35]} Rc4 {[%emt 0:00:40]} 29. g3 {[%emt 0:00:37]} Bd7 {[%emt 0:03:33]} 30. Nf3 {[%emt 0:05:45]} Bf6 {[%emt 0:01:19]} 31. Re2+ {[%emt 0:01:55]} Re4 {[%emt 0:01:06]} 32. Nbd4 {[%emt 0:05:42]} Rxe2+ {[%emt 0:00:31]} 33. Kxe2 {[%emt 0:00:06]} Bg4 {[%emt 0:00:11]} 0-1